fUSD/lending_fUSD_20250228
["ID","MTS","AMOUNT","RATE_DAILY","PERIOD"]
[354802749,1740707547268,-324.75351596,0.000595,30]
[354802750,1740707547277,-6000.0,0.00059534,120]
[354802751,1740707547287,-151.0,0.00059562,120]
[354802752,1740707547296,-154.618068,0.00059726,120]
[354802753,1740707547308,-4105.716146,0.00059726,120]
[354802754,1740707547318,-1424.950955,0.00059726,120]
[354802755,1740707547327,-159.164146,0.00059726,120]
[354802756,1740707547336,-432.1406689,0.00059726,120]
[354802757,1740707547345,-570.68,0.00059726,120]
[354802758,1740707547356,-509.69,0.00059726,120]
[354802759,1740707547366,-828.19,0.00059726,120]
[354802760,1740707547377,-561.92717473,0.00059726,120]
[354802761,1740707547387,-500.0,0.00059726,120]
[354802762,1740707547397,-1852.03,0.00059726,120]
[354802763,1740707547407,-500.0,0.00059726,120]
[354802764,1740707547416,-514.69,0.00059726,120]
[354802765,1740707547426,-284.91298272,0.00059726,120]
[354802766,1740707547435,-500.0,0.00059726,120]
[354802767,1740707547445,-500.0,0.00059726,120]
[354802768,1740707547455,-500.0,0.00059726,120]
[354802769,1740707547465,-629.72073294,0.00059726,120]
[354802770,1740707547474,-511.56,0.00059726,120]
[354802771,1740707547484,-224.01131853,0.00059726,120]
[354802772,1740707547494,-293.32951314,0.00059726,120]
[354802773,1740707547503,-500.0,0.00059726,120]
[354802774,1740707547514,-500.0,0.00059726,120]
[354802775,1740707547525,-500.0,0.00059726,120]
[354802776,1740707547536,-263.0969185,0.00059726,120]
[354802777,1740707547545,-551.51,0.00059726,120]
[354802778,1740707547555,-1099.38,0.00059726,120]
[354802779,1740707547567,-500.0,0.00059726,120]
[354802780,1740707547576,-1641.04,0.00059726,120]
[354802781,1740707547586,-500.0,0.00059726,120]
[354802782,1740707547597,-759.23,0.00059726,120]
[354802783,1740707547607,-500.0,0.00059726,120]
[354802784,1740707547617,-585.19,0.00059726,120]
[354802785,1740707547626,-500.0,0.00059726,120]
[354802786,1740707547636,-509.82,0.00059726,120]
[354802787,1740707547646,-578.23,0.00059726,120]
[354802788,1740707547656,-530.22,0.00059726,120]
[354802789,1740707547666,-509.64,0.00059726,120]
[354802790,1740707547675,-587.4,0.00059726,120]
[354802791,1740707547685,-500.0,0.00059726,120]
[354802792,1740707547695,-192.80733348,0.00059726,120]
[354802793,1740707547704,-500.0,0.00059726,120]
[354802794,1740707547714,-600.42,0.00059726,120]
[354802795,1740707547724,-951.38,0.00059726,2]
[354802796,1740707547733,-630.94,0.00059726,120]
[354802797,1740707547742,-1478.07,0.00059726,120]
[354802798,1740707547752,-594.92,0.00059726,120]
[354802799,1740707547761,-768.84,0.00059726,120]
[354802800,1740707547770,-1119.62,0.00059726,120]
[354802801,1740707547780,-580.73,0.00059726,120]
[354802802,1740707547790,-517.91,0.00059726,120]
[354802803,1740707547799,-1543.06,0.00059726,120]
[354802804,1740707547811,-533.37,0.00059726,120]
[354802805,1740707547820,-1220.35,0.00059726,120]
[354802806,1740707547830,-744.65,0.00059726,120]
[354802807,1740707547839,-1028.04,0.00059726,120]
[354802808,1740707547849,-500.0,0.00059726,120]
[354802809,1740707547858,-1097.3,0.00059726,120]
[354802810,1740707547868,-949.11,0.00059726,120]
[354802811,1740707547878,-879.55,0.00059726,120]
[354802812,1740707547888,-500.0,0.00059726,120]
[354802813,1740707547897,-526.49,0.00059726,120]
[354802814,1740707547908,-828.91,0.00059726,120]
[354802815,1740707547917,-814.83,0.00059726,120]
[354802816,1740707547927,-517.4,0.00059726,120]
[354802817,1740707547936,-852.06,0.00059726,120]
[354802818,1740707547945,-500.0,0.00059726,120]
[354802819,1740707547954,-1009.91,0.00059726,120]
[354802820,1740707547964,-730.96,0.00059726,120]
[354802821,1740707547974,-500.0,0.00059726,120]
[354802822,1740707547983,-1151.75,0.00059726,120]
[354802823,1740707547992,-359.19409883,0.00059726,120]
[354802824,1740707548002,-500.0,0.00059726,120]
[354802825,1740707548011,-885.88,0.00059726,120]
[354802826,1740707548020,-893.14,0.00059726,120]
[354802827,1740707548030,-566.69,0.00059726,120]
[354802828,1740707548040,-647.15310095,0.00059726,120]
[354802829,1740707548049,-504.0,0.00059726,120]
[354802830,1740707548061,-710.67,0.00059726,120]
[354802831,1740707548071,-726.03,0.00059726,120]
[354802832,1740707548080,-1292.45,0.00059726,100]
[354802833,1740707548089,-715.56,0.00059726,120]
[354802834,1740707548099,-500.0,0.00059726,120]
[354802835,1740707548109,-189.35304304,0.00059726,120]
[354802836,1740707548118,-516.93,0.00059726,120]
[354802837,1740707548128,-951.24,0.00059726,120]
[354802838,1740707548137,-741.74,0.00059726,120]
[354802839,1740707548146,-2076.3,0.00059726,120]
[354802840,1740707548156,-500.0,0.00059726,120]
[354802841,1740707548165,-608.51,0.00059726,120]
[354802842,1740707548175,-1051.75,0.00059726,120]
[354802843,1740707548185,-500.0,0.00059726,120]
[354802844,1740707548194,-1105.65,0.00059726,120]
[354802845,1740707548203,-935.9,0.00059726,120]
[354802846,1740707548212,-500.0,0.00059726,120]
[354802847,1740707548221,-1021.57,0.00059726,120]
[354802848,1740707548230,-678.63,0.00059726,120]
[354802849,1740707548239,-847.2,0.00059726,120]
[354802850,1740707548248,-500.0,0.00059726,120]
[354802851,1740707548258,-927.57,0.00059726,120]
[354802852,1740707548268,-362.60118669,0.00059726,120]
[354802853,1740707548278,-1273.87,0.00059726,120]
[354802854,1740707548288,-500.0,0.00059726,120]
[354802855,1740707548299,-762.62,0.00059726,120]
[354802856,1740707548312,-840.01,0.00059726,120]
[354802857,1740707548322,-795.43,0.00059726,120]
[354802858,1740707548332,-575.37,0.00059726,120]
[354802859,1740707548341,-500.0,0.00059726,120]
[354802860,1740707548351,-695.08,0.00059726,120]
[354802861,1740707548360,-1111.02,0.00059726,120]
[354802862,1740707548370,-919.96,0.00059726,120]
[354802863,1740707548380,-612.37,0.00059726,120]
[354802864,1740707548390,-500.0,0.00059726,120]
[354802865,1740707548399,-639.59,0.00059726,120]
[354802866,1740707548409,-2029.62,0.00059726,120]
[354802867,1740707548418,-790.67,0.00059726,120]
[354802868,1740707548428,-500.0,0.00059726,120]
[354802869,1740707548437,-1308.82,0.00059726,120]
[354802870,1740707548447,-551.57,0.00059726,120]
[354802871,1740707548456,-714.61,0.00059726,120]
[354802872,1740707548466,-745.48,0.00059726,120]
[354802873,1740707548475,-646.72,0.00059726,120]
[354802874,1740707548484,-1510.89,0.00059726,120]
[354802875,1740707548493,-500.0,0.00059726,120]
[354802876,1740707548503,-1169.82,0.00059726,120]
[354802877,1740707548512,-2056.21,0.00059726,120]
[354802878,1740707548521,-500.0,0.00059726,120]
[354802879,1740707548530,-1119.09,0.00059726,120]
[354802880,1740707548539,-500.0,0.00059726,120]
[354802881,1740707548548,-500.0,0.00059726,120]
[354802882,1740707548559,-532.93,0.00059726,120]
[354802883,1740707548569,-500.0,0.00059726,120]
[354802884,1740707548578,-729.17,0.00059726,120]
[354802885,1740707548587,-845.3,0.00059726,120]
[354802886,1740707548596,-886.83,0.00059726,120]
[354802887,1740707548606,-650.9,0.00059726,120]
[354802888,1740707548615,-500.0,0.00059726,120]
[354802889,1740707548624,-971.67,0.00059726,120]
[354802890,1740707548633,-511.14,0.00059726,120]
[354802891,1740707548643,-949.57669507,0.00059797,60]
[354802892,1740707548652,-283.61589769,0.0005986,30]
[354802893,1740707548661,-1276.0,0.00059878,120]
[354802894,1740707548670,-1276.0,0.00059878,120]
[354802895,1740707548679,-849.91483821,0.00059885,120]
[354802896,1740707548689,-1300.0,0.0005989,120]
[354802897,1740707548698,-1400.0,0.0005989,120]
[354802898,1740707548708,-167.89,0.00059898,120]
[354802899,1740707548717,-3522.8169656,0.000599,120]
[354802900,1740707548727,-247.51848023,0.0005994,120]
[354802901,1740707548736,-150.0,0.0005994,120]
[354802902,1740707548746,-275.24237745,0.0005994,120]
[354802903,1740707548755,-150.0,0.0005994,120]
[354802904,1740707548766,-150.0,0.0005994,120]
[354802905,1740707548776,-150.0,0.0005994,120]
[354802906,1740707548785,-481.83504171,0.00059999,120]
[354802907,1740707548795,-434.82628644,0.00059999,7]
[354802908,1740707548804,-411.63635531,0.00059999,120]
[354802909,1740707548816,-400.03002681,0.00059999,120]
[354802910,1740707548825,-394.5122687,0.00059999,120]
[354802911,1740707548835,-500.0,0.00059999,120]
[354802912,1740707548844,-500.0,0.00059999,120]
[354802913,1740707548853,-500.0,0.00059999,120]
[354802914,1740707548863,-500.0,0.00059999,120]
[354802915,1740707548873,-521.50661539,0.00059999,120]
[354802916,1740707548882,-439.61031618,0.00059999,120]
[354802917,1740707548892,-500.0,0.00059999,120]
[354802918,1740707548901,-500.0,0.00059999,120]
[354802919,1740707548910,-500.0,0.00059999,120]
[354802920,1740707548920,-607.72284374,0.00059999,120]
[354802921,1740707548929,-1000.0,0.00059999,120]
[354802922,1740707548938,-154.618068,0.00059999,120]
[354802923,1740707548948,-4105.716146,0.00059999,120]
[354802924,1740707548957,-1424.950955,0.00059999,120]
[354802925,1740707548966,-570.68,0.00059999,120]
[354802926,1740707548976,-509.69,0.00059999,120]
[354802927,1740707548986,-828.19,0.00059999,120]
[354802928,1740707548995,-500.0,0.00059999,120]
[354802929,1740707549005,-1852.03,0.00059999,120]
[354802930,1740707549014,-500.0,0.00059999,120]
[354802931,1740707549024,-514.69,0.00059999,120]
[354802932,1740707549033,-500.0,0.00059999,120]
[354802933,1740707549042,-449.14651566,0.00059999,120]
[354802934,1740707549052,-500.0,0.00059999,120]
[354802935,1740707549062,-511.56,0.00059999,120]
[354802936,1740707549072,-500.0,0.00059999,120]
[354802937,1740707549081,-500.0,0.00059999,120]
[354802938,1740707549091,-500.0,0.00059999,120]
[354802939,1740707549100,-551.51,0.00059999,120]
[354802940,1740707549109,-1099.38,0.00059999,120]
[354802941,1740707549119,-636.73941977,0.00059999,120]
[354802942,1740707549128,-1641.04,0.00059999,120]
[354802943,1740707549138,-500.0,0.00059999,120]
[354802944,1740707549147,-759.23,0.00059999,120]
[354802945,1740707549156,-173.02990185,0.00059999,120]
[354802946,1740707549166,-585.19,0.00059999,120]
[354802947,1740707549177,-500.0,0.00059999,120]
[354802948,1740707549187,-509.82,0.00059999,120]
[354802949,1740707549196,-578.23,0.00059999,120]
[354802950,1740707549206,-530.22,0.00059999,120]
[354802951,1740707549216,-509.64,0.00059999,120]
[354802952,1740707549225,-587.4,0.00059999,120]
[354802953,1740707549234,-500.0,0.00059999,120]
[354802954,1740707549244,-517.1304495,0.00059999,120]
[354802955,1740707549254,-600.42,0.00059999,120]
[354802956,1740707549263,-951.38,0.00059999,2]
[354802957,1740707549273,-630.94,0.00059999,120]
[354802958,1740707549283,-1478.07,0.00059999,120]
[354802959,1740707549292,-594.92,0.00059999,120]
[354802960,1740707549302,-768.84,0.00059999,120]
[354802961,1740707549312,-1119.62,0.00059999,120]
[354802962,1740707549322,-580.73,0.00059999,120]
[354802963,1740707549332,-517.91,0.00059999,120]
[354802964,1740707549341,-1543.06,0.00059999,120]
[354802965,1740707549351,-533.37,0.00059999,120]
[354802966,1740707549360,-1220.35,0.00059999,120]
[354802967,1740707549370,-744.65,0.00059999,120]
[354802968,1740707549379,-1028.04,0.00059999,120]
[354802969,1740707549389,-611.56583661,0.00059999,120]
[354802970,1740707549398,-1097.3,0.00059999,120]
[354802971,1740707549407,-949.11,0.00059999,120]
[354802972,1740707549417,-879.55,0.00059999,120]
[354802973,1740707549426,-500.0,0.00059999,120]
[354802974,1740707549435,-526.49,0.00059999,120]
[354802975,1740707549444,-828.91,0.00059999,120]
[354802976,1740707549454,-814.83,0.00059999,120]
[354802977,1740707549463,-517.4,0.00059999,120]
[354802978,1740707549472,-852.06,0.00059999,120]
[354802979,1740707549481,-500.0,0.00059999,120]
[354802980,1740707549491,-1009.91,0.00059999,120]
[354802981,1740707549501,-730.96,0.00059999,120]
[354802982,1740707549510,-500.0,0.00059999,120]
[354802983,1740707549525,-1151.75,0.00059999,120]
[354802984,1740707549534,-500.0,0.00059999,120]
[354802985,1740707549543,-885.88,0.00059999,120]
[354802986,1740707549552,-893.14,0.00059999,120]
[354802987,1740707549629,-566.69,0.00059999,120]
[354802988,1740707549639,-504.0,0.00059999,120]
[354802989,1740707549648,-710.67,0.00059999,120]
[354802990,1740707549658,-726.03,0.00059999,120]
[354802991,1740707549668,-1292.45,0.00059999,100]
[354802992,1740707549678,-715.56,0.00059999,120]
[354802993,1740707549687,-500.0,0.00059999,120]
[354802994,1740707549697,-516.93,0.00059999,120]
[354802995,1740707549706,-951.24,0.00059999,120]
[354802996,1740707549715,-741.74,0.00059999,120]
[354802997,1740707549724,-2076.3,0.00059999,120]
[354802998,1740707549734,-500.0,0.00059999,120]
[354802999,1740707549744,-608.51,0.00059999,120]
[354803000,1740707549754,-1051.75,0.00059999,120]
[354803001,1740707549764,-500.0,0.00059999,120]
[354803002,1740707549774,-1105.65,0.00059999,120]
[354803003,1740707549783,-935.9,0.00059999,120]
[354803004,1740707549792,-500.0,0.00059999,120]
[354803005,1740707549802,-1021.57,0.00059999,120]
[354803006,1740707549813,-678.63,0.00059999,120]
[354803007,1740707549822,-847.2,0.00059999,120]
[354803008,1740707549831,-175.17115151,0.00059999,120]
[354803009,1740707549841,-927.57,0.00059999,120]
[354803010,1740707549850,-1273.87,0.00059999,120]
[354803011,1740707549859,-500.0,0.00059999,120]
[354803012,1740707549868,-762.62,0.00059999,120]
[354803013,1740707549877,-840.01,0.00059999,120]
[354803014,1740707549887,-795.43,0.00059999,120]
[354803015,1740707549897,-575.37,0.00059999,120]
[354803016,1740707549906,-447.55356458,0.00059999,120]
[354803017,1740707549915,-695.08,0.00059999,120]
[354803018,1740707549923,-1111.02,0.00059999,120]
[354803019,1740707549932,-919.96,0.00059999,120]
[354803020,1740707549942,-612.37,0.00059999,120]
[354803021,1740707549951,-205.5483355,0.00059999,120]
[354803022,1740707549960,-639.59,0.00059999,120]
[354803023,1740707549969,-2029.62,0.00059999,120]
[354803024,1740707549979,-790.67,0.00059999,120]
[354803025,1740707549988,-500.0,0.00059999,120]
[354803026,1740707549997,-1308.82,0.00059999,120]
[354803027,1740707550006,-551.57,0.00059999,120]
[354803028,1740707550016,-714.61,0.00059999,120]
[354803029,1740707550025,-745.48,0.00059999,120]
[354803030,1740707550035,-646.72,0.00059999,120]
[354803031,1740707550045,-1510.89,0.00059999,120]
[354803032,1740707550055,-500.0,0.00059999,120]
[354803033,1740707550067,-1169.82,0.00059999,120]
[354803034,1740707550077,-2056.21,0.00059999,120]
[354803035,1740707550086,-646.3596339,0.00059999,120]
[354803036,1740707550096,-1119.09,0.00059999,120]
[354803037,1740707550106,-500.0,0.00059999,120]
[354803038,1740707550116,-500.0,0.00059999,120]
[354803039,1740707550126,-532.93,0.00059999,120]
[354803040,1740707550136,-500.0,0.00059999,120]
[354803041,1740707550145,-729.17,0.00059999,120]
[354803042,1740707550154,-845.3,0.00059999,120]
[354803043,1740707550164,-886.83,0.00059999,120]
[354803044,1740707550173,-650.9,0.00059999,120]
[354803045,1740707550183,-500.0,0.00059999,120]
[354803046,1740707550192,-971.67,0.00059999,120]
[354803047,1740707550201,-511.14,0.00059999,120]
[354803048,1740707550211,-1000000.0,0.0006,120]
[354803049,1740707550221,-1000000.0,0.0006,120]
[354803050,1740707550231,-1000.0,0.0006,120]
[354803051,1740707550240,-1000000.0,0.0006,120]
[354803052,1740707550250,-500.0,0.0006,120]
[354803053,1740707550259,-1000000.0,0.0006,120]
[354803054,1740707550268,-341.75610834,0.0006,120]
[354803055,1740707550278,-310.99857879,0.0006,120]
[354803056,1740707550288,-150.0,0.0006,30]
[354803057,1740707550297,-1000.0,0.0006,120]
[354803058,1740707550307,-150.0,0.0006,120]
[354803059,1740707550319,-1000000.0,0.0006,120]
[354803060,1740707550328,-2000.0,0.0006,120]
[354803061,1740707550341,-7961.77897011,0.0006,60]
[354803062,1740707550350,-350.0,0.0006,120]
[354803063,1740707550360,-8674.23664374,0.0006,30]
[354803064,1740707550370,-780.82329048,0.0006,60]
[354803065,1740707550379,-87830.37621005,0.0006,60]
[354803066,1740707550389,-4953.81433438,0.0006,105]
[354803067,1740707550399,-247.51848023,0.00060007,120]
[354803068,1740707550408,-150.0,0.0006002,120]
[354803069,1740707550422,-150.0,0.00060071,120]
[354803070,1740707550432,-247.51848023,0.00060075,120]
[354803071,1740707550440,-150.0,0.000601,120]
[354803072,1740707550450,-247.51848023,0.00060142,120]
[354803073,1740707550459,-150.0,0.00060181,120]
[354803074,1740707550468,-150.0,0.00060201,120]
[354803075,1740707550477,-247.51848023,0.00060209,120]
[354803076,1740707550487,-150.0,0.00060261,120]
[354803077,1740707550496,-154.618068,0.00060273,120]
[354803078,1740707550505,-4105.716146,0.00060273,120]
[354803079,1740707550515,-1424.950955,0.00060273,120]
[354803080,1740707550528,-159.164146,0.00060273,120]
[354803081,1740707550538,-570.68,0.00060273,120]
[354803082,1740707550548,-509.69,0.00060273,120]
[354803083,1740707550557,-828.19,0.00060273,120]
[354803084,1740707550570,-500.0,0.00060273,120]
[354803085,1740707550580,-1852.03,0.00060273,120]
[354803086,1740707550589,-500.0,0.00060273,120]
[354803087,1740707550598,-514.69,0.00060273,120]
[354803088,1740707550608,-500.0,0.00060273,120]
[354803089,1740707550618,-500.0,0.00060273,120]
[354803090,1740707550627,-511.56,0.00060273,120]
[354803091,1740707550636,-619.36935025,0.00060273,120]
[354803092,1740707550645,-500.0,0.00060273,120]
[354803093,1740707550654,-437.32352266,0.00060273,120]
[354803094,1740707550663,-551.51,0.00060273,120]
[354803095,1740707550672,-1099.38,0.00060273,120]
[354803096,1740707550682,-1641.04,0.00060273,120]
[354803097,1740707550691,-485.22083113,0.00060273,120]
[354803098,1740707550700,-759.23,0.00060273,120]
[354803099,1740707550710,-585.19,0.00060273,120]
[354803100,1740707550719,-351.94845547,0.00060273,120]
[354803101,1740707550729,-509.82,0.00060273,120]
[354803102,1740707550739,-578.23,0.00060273,120]
[354803103,1740707550748,-530.22,0.00060273,120]
[354803104,1740707550757,-509.64,0.00060273,120]
[354803105,1740707550767,-587.4,0.00060273,120]
[354803106,1740707550776,-599.39039803,0.00060273,120]
[354803107,1740707550785,-600.42,0.00060273,120]
[354803108,1740707550794,-951.38,0.00060273,2]
[354803109,1740707550804,-630.94,0.00060273,120]
[354803110,1740707550816,-1478.07,0.00060273,120]
[354803111,1740707550825,-594.92,0.00060273,120]
[354803112,1740707550835,-768.84,0.00060273,120]
[354803113,1740707550845,-1119.62,0.00060273,120]
[354803114,1740707550855,-580.73,0.00060273,120]
[354803115,1740707550865,-517.91,0.00060273,120]
[354803116,1740707550874,-1543.06,0.00060273,120]
[354803117,1740707550883,-533.37,0.00060273,120]
[354803118,1740707550892,-1220.35,0.00060273,120]
[354803119,1740707550902,-744.65,0.00060273,120]
[354803120,1740707550911,-1028.04,0.00060273,120]
[354803121,1740707550920,-1097.3,0.00060273,120]
[354803122,1740707550929,-949.11,0.00060273,120]
[354803123,1740707550938,-879.55,0.00060273,120]
[354803124,1740707550947,-500.0,0.00060273,120]
[354803125,1740707550956,-526.49,0.00060273,120]
[354803126,1740707550965,-828.91,0.00060273,120]
[354803127,1740707550974,-814.83,0.00060273,120]
[354803128,1740707550984,-517.4,0.00060273,120]
[354803129,1740707550993,-852.06,0.00060273,120]
[354803130,1740707551002,-500.0,0.00060273,120]
[354803131,1740707551011,-1009.91,0.00060273,120]
[354803132,1740707551020,-730.96,0.00060273,120]
[354803133,1740707551029,-501.90701198,0.00060273,120]
[354803134,1740707551039,-1151.75,0.00060273,120]
[354803135,1740707551048,-500.0,0.00060273,120]
[354803136,1740707551057,-885.88,0.00060273,120]
[354803137,1740707551067,-893.14,0.00060273,120]
[354803138,1740707551077,-566.69,0.00060273,120]
[354803139,1740707551085,-504.0,0.00060273,120]
[354803140,1740707551094,-710.67,0.00060273,120]
[354803141,1740707551103,-726.03,0.00060273,120]
[354803142,1740707551112,-1292.45,0.00060273,100]
[354803143,1740707551122,-715.56,0.00060273,120]
[354803144,1740707551131,-500.0,0.00060273,120]
[354803145,1740707551141,-516.93,0.00060273,120]
[354803146,1740707551150,-951.24,0.00060273,120]
[354803147,1740707551160,-741.74,0.00060273,120]
[354803148,1740707551169,-2076.3,0.00060273,120]
[354803149,1740707551178,-165.81713654,0.00060273,120]
[354803150,1740707551187,-608.51,0.00060273,120]
[354803151,1740707551196,-1051.75,0.00060273,120]
[354803152,1740707551205,-484.00538719,0.00060273,120]
[354803153,1740707551214,-1105.65,0.00060273,120]
[354803154,1740707551223,-935.9,0.00060273,120]
[354803155,1740707551232,-631.88389165,0.00060273,120]
[354803156,1740707551242,-1021.57,0.00060273,120]
[354803157,1740707551251,-678.63,0.00060273,120]
[354803158,1740707551260,-847.2,0.00060273,120]
[354803159,1740707551269,-927.57,0.00060273,120]
[354803160,1740707551278,-1273.87,0.00060273,120]
[354803161,1740707551288,-500.0,0.00060273,120]
[354803162,1740707551297,-762.62,0.00060273,120]
[354803163,1740707551307,-840.01,0.00060273,120]
[354803164,1740707551318,-795.43,0.00060273,120]
[354803165,1740707551328,-586.05691753,0.00060273,120]
[354803166,1740707551337,-575.37,0.00060273,120]
[354803167,1740707551347,-695.08,0.00060273,120]
[354803168,1740707551356,-1111.02,0.00060273,120]
[354803169,1740707551365,-919.96,0.00060273,120]
[354803170,1740707551374,-612.37,0.00060273,120]
[354803171,1740707551383,-639.59,0.00060273,120]
[354803172,1740707551392,-2029.62,0.00060273,120]
[354803173,1740707551402,-500.0,0.00060273,120]
[354803174,1740707551411,-790.67,0.00060273,120]
[354803175,1740707551420,-1308.82,0.00060273,120]
[354803176,1740707551429,-551.57,0.00060273,120]
[354803177,1740707551438,-714.61,0.00060273,120]
[354803178,1740707551447,-745.48,0.00060273,120]
[354803179,1740707551456,-646.72,0.00060273,120]
[354803180,1740707551465,-1510.89,0.00060273,120]
[354803181,1740707551474,-335.53697026,0.00060273,120]
[354803182,1740707551483,-1169.82,0.00060273,120]
[354803183,1740707551493,-2056.21,0.00060273,120]
[354803184,1740707551502,-1119.09,0.00060273,120]
[354803185,1740707551511,-500.0,0.00060273,120]
[354803186,1740707551522,-601.70939551,0.00060273,120]
[354803187,1740707551531,-532.93,0.00060273,120]
[354803188,1740707551540,-500.0,0.00060273,120]
[354803189,1740707551549,-729.17,0.00060273,120]
[354803190,1740707551561,-845.3,0.00060273,120]
[354803191,1740707551571,-886.83,0.00060273,120]
[354803192,1740707551580,-650.9,0.00060273,120]
[354803193,1740707551590,-500.0,0.00060273,120]
[354803194,1740707551600,-971.67,0.00060273,120]
[354803195,1740707551610,-511.14,0.00060273,120]
[354803196,1740707551619,-247.51848023,0.00060276,120]
[354803197,1740707551628,-150.0,0.00060291,120]
[354803198,1740707551638,-150.0,0.00060332,120]
[354803199,1740707551647,-150.0,0.00060341,120]
[354803200,1740707551656,-247.51848023,0.00060344,120]
[354803201,1740707551665,-247.51848023,0.00060411,120]
[354803202,1740707551674,-150.0,0.00060421,120]
[354803203,1740707551683,-1300.0,0.00060438,120]
[354803204,1740707551693,-1400.0,0.00060438,120]
[354803205,1740707551702,-328.30825708,0.0006044,30]
[354803206,1740707551712,-150.0,0.00060462,120]
[354803207,1740707551721,-247.51848023,0.00060478,120]
[354803208,1740707551733,-1000.0,0.000605,120]
[354803209,1740707551743,-150.0,0.00060502,120]
[354803210,1740707551754,-203.0,0.0006052,30]
[354803211,1740707551764,-247.51848023,0.00060545,120]
[354803212,1740707551774,-154.618068,0.00060547,120]
[354803213,1740707551783,-4105.716146,0.00060547,120]
[354803214,1740707551792,-1424.950955,0.00060547,120]
[354803215,1740707551801,-570.68,0.00060547,120]
[354803216,1740707551811,-509.69,0.00060547,120]
[354803217,1740707551821,-828.19,0.00060547,120]
[354803218,1740707551830,-500.0,0.00060547,120]
[354803219,1740707551841,-1852.03,0.00060547,120]
[354803220,1740707551850,-500.0,0.00060547,120]
[354803221,1740707551860,-514.69,0.00060547,120]
[354803222,1740707551871,-500.0,0.00060547,120]
[354803223,1740707551882,-500.0,0.00060547,120]
[354803224,1740707551891,-511.56,0.00060547,120]
[354803225,1740707551902,-296.83641967,0.00060547,120]
[354803226,1740707551912,-551.51,0.00060547,120]
[354803227,1740707551922,-1099.38,0.00060547,120]
[354803228,1740707551933,-1641.04,0.00060547,120]
[354803229,1740707551943,-759.23,0.00060547,120]
[354803230,1740707551952,-585.19,0.00060547,120]
[354803231,1740707551962,-509.82,0.00060547,120]
[354803232,1740707551972,-578.23,0.00060547,120]
[354803233,1740707551981,-530.22,0.00060547,120]
[354803234,1740707551991,-509.64,0.00060547,120]
[354803235,1740707552001,-587.4,0.00060547,120]
[354803236,1740707552010,-600.42,0.00060547,120]
[354803237,1740707552020,-951.38,0.00060547,2]
[354803238,1740707552030,-630.94,0.00060547,120]
[354803239,1740707552040,-1478.07,0.00060547,120]
[354803240,1740707552049,-594.92,0.00060547,120]
[354803241,1740707552058,-768.84,0.00060547,120]
[354803242,1740707552068,-1119.62,0.00060547,120]
[354803243,1740707552078,-580.73,0.00060547,120]
[354803244,1740707552087,-517.91,0.00060547,120]
[354803245,1740707552096,-1543.06,0.00060547,120]
[354803246,1740707552106,-533.37,0.00060547,120]
[354803247,1740707552115,-1220.35,0.00060547,120]
[354803248,1740707552125,-744.65,0.00060547,120]